fUSD/lending_fUSD_20240429
["ID","MTS","AMOUNT","RATE_DAILY","PERIOD"]
[324860905,1714378243891,-500.0,0.00012376,2]
[324860906,1714378243901,-500.0,0.00012376,2]
[324860907,1714378243911,-525.94145843,0.00012376,2]
[324860908,1714378243920,-500.0,0.00012376,2]
[324860909,1714378243930,-504.06966058,0.00012376,2]
[324860910,1714378243939,-500.0,0.00012376,2]
[324860911,1714378243948,-500.0,0.00012377,2]
[324860912,1714378243958,-500.0,0.00012377,2]
[324860913,1714378243967,-500.0,0.00012377,2]
[324860914,1714378243976,-503.52402664,0.00012377,2]
[324860915,1714378243986,-500.0,0.00012377,2]
[324860916,1714378243995,-500.0,0.00012377,2]
[324860917,1714378244005,-500.0,0.00012377,2]
[324860918,1714378244015,-500.0,0.00012377,2]
[324860919,1714378244024,-523.5,0.00012377,2]
[324860920,1714378244034,-500.0,0.00012377,2]
[324860921,1714378244044,-500.0,0.00012377,2]
[324860922,1714378244053,-500.0,0.00012377,2]
[324860923,1714378244063,-500.0,0.00012377,2]
[324860924,1714378244072,-500.0,0.00012377,2]
[324860925,1714378244082,-540.27445614,0.00012377,2]
[324860926,1714378244091,-500.0,0.00012377,2]
[324860927,1714378244101,-500.0,0.00012377,2]
[324860928,1714378244110,-500.0,0.00012377,2]
[324860929,1714378244120,-500.0,0.00012377,2]
[324860930,1714378244129,-500.0,0.00012377,2]
[324860931,1714378244139,-500.0,0.00012377,2]
[324860932,1714378244152,-500.0,0.00012377,2]
[324860933,1714378244162,-500.0,0.00012377,2]
[324860934,1714378244172,-500.0,0.00012377,2]
[324860935,1714378244181,-500.0,0.00012377,2]
[324860936,1714378244191,-500.0,0.00012377,2]
[324860937,1714378244201,-502.54613161,0.00012377,2]
[324860938,1714378244210,-500.0,0.00012377,2]
[324860939,1714378244220,-500.0,0.00012377,2]
[324860940,1714378244229,-500.0,0.00012377,2]
[324860941,1714378244239,-500.0,0.00012377,2]
[324860942,1714378244248,-500.0,0.00012377,2]
[324860943,1714378244258,-500.0,0.00012377,2]
[324860944,1714378244267,-500.0,0.00012377,2]
[324860945,1714378244277,-500.0,0.00012377,2]
[324860946,1714378244286,-500.0,0.00012377,2]
[324860947,1714378244296,-260.17,0.00012377,2]
[324860948,1714378244305,-500.0,0.00012377,2]
[324860949,1714378244315,-500.0,0.00012377,2]
[324860950,1714378244324,-500.0,0.00012377,2]
[324860951,1714378244333,-500.0,0.00012377,2]
[324860952,1714378244343,-500.0,0.00012377,2]
[324860953,1714378244352,-500.0,0.00012377,2]
[324860954,1714378244362,-500.0,0.00012377,2]
[324860955,1714378244372,-500.0,0.00012377,2]
[324860956,1714378244381,-572.97,0.00012377,2]
[324860957,1714378244393,-500.0,0.00012377,2]
[324860958,1714378244402,-500.0,0.00012377,2]
[324860959,1714378244411,-500.0,0.00012377,2]
[324860960,1714378244421,-500.0,0.00012377,2]
[324860961,1714378244430,-500.0,0.00012377,2]
[324860962,1714378244439,-500.0,0.00012377,2]
[324860963,1714378244448,-500.0,0.00012377,2]
[324860964,1714378244458,-500.0,0.00012377,2]
[324860965,1714378244467,-500.0,0.00012377,2]
[324860966,1714378244477,-443.17708632,0.00012377,2]
[324860967,1714378244486,-500.0,0.00012377,2]
[324860968,1714378244495,-500.0,0.00012377,2]
[324860969,1714378244505,-500.0,0.00012377,2]
[324860970,1714378244515,-500.0,0.00012377,2]
[324860971,1714378244529,-500.0,0.00012377,2]
[324860972,1714378244538,-522.55,0.00012377,2]
[324860973,1714378244547,-500.0,0.00012377,2]
[324860974,1714378244557,-500.0,0.00012377,2]
[324860975,1714378244567,-500.0,0.00012377,2]
[324860976,1714378244577,-500.0,0.00012377,2]
[324860977,1714378244586,-515.14,0.00012377,2]
[324860978,1714378244595,-500.0,0.00012377,2]
[324860979,1714378244606,-565.6843659,0.00012377,2]
[324860980,1714378244617,-3442.66,0.00012377,2]
[324860981,1714378244627,-500.0,0.00012377,2]
[324860982,1714378244635,-500.0,0.00012377,2]
[324860983,1714378244646,-500.0,0.00012377,2]
[324860984,1714378244655,-500.0,0.00012377,2]
[324860986,1714378244664,-500.0,0.00012377,2]
[324860987,1714378244673,-500.0,0.00012377,2]
[324860988,1714378244683,-500.0,0.00012377,2]
[324860989,1714378244692,-500.0,0.00012377,2]
[324860990,1714378244702,-677.08,0.00012377,2]
[324860991,1714378244711,-500.0,0.00012377,2]
[324860992,1714378244720,-500.0,0.00012377,2]
[324860993,1714378244729,-500.0,0.00012377,2]
[324860994,1714378244738,-500.0,0.00012377,2]
[324860995,1714378244747,-500.0,0.00012377,2]
[324860996,1714378244757,-500.0,0.00012377,2]
[324860997,1714378244766,-500.0,0.00012377,2]
[324860998,1714378244776,-690.27,0.00012377,2]
[324860999,1714378244785,-500.0,0.00012377,2]
[324861000,1714378244795,-500.0,0.00012377,2]
[324861001,1714378244805,-675.91,0.00012377,2]
[324861002,1714378244814,-500.0,0.00012377,2]
[324861003,1714378244823,-500.0,0.00012377,2]
[324861004,1714378244832,-169.72,0.00012377,2]
[324861005,1714378244841,-500.0,0.00012377,2]
[324861006,1714378244851,-500.0,0.00012377,2]
[324861007,1714378244860,-500.0,0.00012377,2]
[324861008,1714378244869,-683.22,0.00012377,2]
[324861009,1714378244879,-1102.61,0.00012377,2]
[324861010,1714378244888,-500.0,0.00012377,2]
[324861011,1714378244899,-500.0,0.00012377,2]
[324861012,1714378244908,-500.0,0.00012377,2]
[324861013,1714378244917,-545.41,0.00012377,2]
[324861014,1714378244928,-500.0,0.00012377,2]
[324861015,1714378244937,-500.0,0.00012377,2]
[324861016,1714378244946,-500.0,0.00012377,2]
[324861017,1714378244955,-500.0,0.00012377,2]
[324861018,1714378244965,-500.0,0.00012378,2]
[324861019,1714378244974,-500.0,0.00012378,2]
[324861020,1714378245031,-500.0,0.00012378,2]
[324861021,1714378245040,-500.0,0.00012378,2]
[324861022,1714378245049,-256.89,0.00012378,2]
[324861023,1714378245059,-500.0,0.00012378,2]
[324861024,1714378245068,-500.0,0.00012378,2]
[324861025,1714378245078,-500.0,0.00012378,2]
[324861026,1714378245087,-739.37,0.00012378,2]
[324861027,1714378245096,-506.0391659,0.00012378,2]
[324861028,1714378245105,-500.0,0.00012378,2]
[324861029,1714378245114,-528.66,0.00012378,2]
[324861030,1714378245123,-506.41831689,0.00012378,2]
[324861031,1714378245132,-500.0,0.00012378,2]
[324861032,1714378245141,-156.38400229,0.00012378,2]
[324861033,1714378245152,-500.74452117,0.00012378,2]
[324861034,1714378245161,-500.0,0.00012378,2]
[324861035,1714378245170,-501.32562402,0.00012378,2]
[324861036,1714378245179,-500.0,0.00012378,2]
[324861037,1714378245188,-504.61842249,0.00012378,2]
[324861038,1714378245198,-500.0,0.00012378,2]
[324861039,1714378245206,-489.0,0.00012378,2]
[324861040,1714378245215,-526.87390173,0.00012378,2]
[324861041,1714378245224,-500.0,0.00012378,2]
[324861042,1714378245233,-381.66100428,0.00012378,2]
[324861043,1714378245243,-501.22696699,0.00012378,2]
[324861044,1714378245252,-500.0,0.00012378,2]
[324861045,1714378245261,-574.23298669,0.00012378,2]
[324861046,1714378245270,-500.0,0.00012378,2]
[324861047,1714378245279,-500.0,0.00012378,2]
[324861048,1714378245288,-500.0,0.00012378,2]
[324861049,1714378245297,-500.0,0.00012378,2]
[324861050,1714378245306,-500.0,0.00012378,2]
[324861051,1714378245315,-500.0,0.00012378,2]
[324861052,1714378245324,-500.0,0.00012378,2]
[324861053,1714378245333,-501.41321763,0.00012378,2]
[324861054,1714378245342,-500.0,0.00012378,2]
[324861055,1714378245351,-500.0,0.00012378,2]
[324861056,1714378245360,-500.0,0.00012378,2]
[324861057,1714378245370,-502.71239171,0.00012378,2]
[324861058,1714378245379,-220.74851532,0.00012378,2]
[324861059,1714378245388,-520.66267846,0.00012378,2]
[324861060,1714378245401,-530.84,0.00012378,2]
[324861061,1714378245410,-500.0,0.00012378,2]
[324861062,1714378245420,-500.0,0.00012378,2]
[324861063,1714378245429,-500.0,0.00012378,2]
[324861064,1714378245438,-500.0,0.00012378,2]
[324861065,1714378245447,-500.0,0.00012378,2]
[324861066,1714378245456,-500.0,0.00012378,2]
[324861067,1714378245465,-500.0,0.00012378,2]
[324861068,1714378245474,-588.35,0.00012378,2]
[324861069,1714378245483,-500.0,0.00012378,2]
[324861070,1714378245492,-500.0,0.00012378,2]
[324861071,1714378245501,-500.0,0.00012378,2]
[324861072,1714378245510,-500.0,0.00012378,2]
[324861073,1714378245520,-500.0,0.00012378,2]
[324861074,1714378245530,-500.0,0.00012378,2]
[324861075,1714378245542,-500.0,0.00012378,2]
[324861076,1714378245551,-500.0,0.00012378,2]
[324861077,1714378245560,-518.04228308,0.00012378,2]
[324861078,1714378245569,-545.02,0.00012378,2]
[324861079,1714378245579,-500.0,0.00012378,2]
[324861080,1714378245588,-500.0,0.00012378,2]
[324861081,1714378245597,-500.0,0.00012378,2]
[324861082,1714378245605,-500.0,0.00012378,2]
[324861083,1714378245615,-500.0,0.00012378,2]
[324861084,1714378245624,-500.0,0.00012378,2]
[324861085,1714378245633,-501.57662709,0.00012378,2]
[324861086,1714378245643,-500.0,0.00012378,2]
[324861087,1714378245652,-500.0,0.00012378,2]
[324861088,1714378245661,-159.34192956,0.00012378,2]
[324861089,1714378245669,-500.0,0.00012378,2]
[324861090,1714378245678,-500.0,0.00012378,2]
[324861091,1714378245686,-255.01,0.00012378,2]
[324861092,1714378245695,-500.0,0.00012378,2]
[324861093,1714378245704,-1248.81,0.00012378,2]
[324861094,1714378245713,-500.0,0.00012378,2]
[324861095,1714378245722,-500.0,0.00012378,2]
[324861096,1714378245731,-500.0,0.00012378,2]
[324861097,1714378245739,-649.78,0.00012378,2]
[324861098,1714378245748,-500.0,0.00012378,2]
[324861099,1714378245757,-500.0,0.00012378,2]
[324861100,1714378245766,-500.0,0.00012378,2]
[324861101,1714378245775,-500.0,0.00012378,2]
[324861102,1714378245784,-500.0,0.00012378,2]
[324861103,1714378245792,-501.60724152,0.00012378,2]
[324861104,1714378245802,-500.0,0.00012378,2]
[324861105,1714378245811,-500.0,0.00012378,2]
[324861106,1714378245820,-500.0,0.00012378,2]
[324861107,1714378245829,-558.24,0.00012378,2]
[324861108,1714378245837,-500.0,0.00012378,2]
[324861109,1714378245846,-500.0,0.00012378,2]
[324861110,1714378245855,-500.0,0.00012378,2]
[324861111,1714378245864,-500.0,0.00012378,2]
[324861112,1714378245872,-500.0,0.00012378,2]
[324861113,1714378245881,-598.0,0.00012378,2]
[324861114,1714378245891,-500.0,0.00012378,2]
[324861115,1714378245900,-504.28906874,0.00012378,2]
[324861116,1714378245909,-500.0,0.00012378,2]
[324861117,1714378245918,-200.68,0.00012378,2]
[324861118,1714378245928,-500.0,0.00012378,2]
[324861119,1714378245936,-509.40572822,0.00012378,2]
[324861120,1714378245945,-500.0,0.00012378,2]
[324861121,1714378245954,-500.0,0.00012378,2]
[324861122,1714378245963,-500.0,0.00012378,2]
[324861123,1714378245971,-436.6667552,0.00012379,2]
[324861124,1714378245981,-500.0,0.00012379,2]
[324861125,1714378245990,-500.0,0.00012379,2]
[324861126,1714378245998,-497.47392743,0.00012379,2]
[324861127,1714378246008,-12619.37941851,0.000124,2]
[324861128,1714378246017,-24500.0,0.000124,4]
[324861129,1714378246026,-497.47392743,0.0001243,2]
[324861130,1714378246035,-152.0,0.00012472,4]
[324861131,1714378246045,-178.69867596,0.0001248,2]
[324861132,1714378246054,-497.47392743,0.0001248,2]
[324861133,1714378246063,-2751.28421757,0.0001248,2]
[324861134,1714378246072,-172.47468351,0.0001248,2]
[324861135,1714378246082,-168.52611107,0.0001248,2]
[324861136,1714378246091,-212.21969678,0.0001248,2]
[324861137,1714378246100,-606.64513349,0.0001248,2]
[324861138,1714378246110,-305.46503919,0.0001249,2]
[324861139,1714378246119,-2212.17975881,0.00012497,2]
[324861140,1714378246128,-168.70521326,0.000125,2]
[324861141,1714378246138,-30600.0,0.000125,4]
[324861142,1714378246148,-2751.28421757,0.00012518,2]
[324861143,1714378246157,-2751.28421757,0.00012556,2]
[324861144,1714378246167,-3734.19254607,0.00012567,2]
[324861145,1714378246176,-500.0,0.0001257,2]
[324861146,1714378246185,-305.46503919,0.0001257,2]
[324861147,1714378246194,-500.0,0.00012577,2]
[324861148,1714378246203,-489.03115689,0.00012578,2]
[324861149,1714378246212,-268.28302691,0.00012578,2]
[324861150,1714378246221,-204.77348564,0.00012578,2]
[324861151,1714378246231,-317.01746459,0.00012578,2]
[324861152,1714378246240,-500.0,0.00012578,2]
[324861153,1714378246248,-500.0,0.00012578,2]
[324861154,1714378246257,-500.0,0.00012578,2]
[324861155,1714378246266,-586.03321941,0.00012578,2]
[324861156,1714378246276,-5653.37842289,0.00012578,2]
[324861157,1714378246285,-3805.47993517,0.00012578,2]
[324861158,1714378246294,-1798.73745493,0.00012578,2]
[324861159,1714378246303,-5000.0,0.00012578,2]
[324861160,1714378246312,-407.19761892,0.00012578,2]
[324861161,1714378246321,-206.88313584,0.00012578,2]
[324861162,1714378246329,-37981.13828103,0.00012579,2]
[324861163,1714378246339,-801.49,0.00012579,2]
[324861164,1714378246348,-9150.01,0.00012579,2]
[324861165,1714378246357,-500.0,0.00012579,2]
[324861166,1714378246366,-500.0,0.00012579,2]
[324861167,1714378246375,-1511.56,0.00012579,2]
[324861168,1714378246384,-500.0,0.00012579,2]
[324861169,1714378246394,-500.0,0.00012579,2]
[324861170,1714378246402,-500.0,0.00012579,2]
[324861171,1714378246411,-500.0,0.00012579,2]
[324861172,1714378246420,-500.0,0.00012579,2]
[324861173,1714378246430,-500.0,0.00012579,2]
[324861174,1714378246439,-500.0,0.00012579,2]
[324861175,1714378246448,-500.0,0.00012579,2]
[324861176,1714378246457,-500.0,0.00012579,2]
[324861177,1714378246466,-500.0,0.00012579,2]
[324861178,1714378246475,-500.0,0.00012579,2]
[324861179,1714378246485,-500.0,0.00012579,2]
[324861180,1714378246494,-500.0,0.00012579,2]
[324861181,1714378246503,-500.0,0.00012579,2]
[324861182,1714378246512,-500.0,0.00012579,2]
[324861183,1714378246521,-500.0,0.00012579,2]
[324861184,1714378246531,-500.0,0.00012579,2]
[324861185,1714378246543,-500.0,0.00012579,2]
[324861186,1714378246552,-500.0,0.00012579,2]
[324861187,1714378246561,-500.0,0.00012579,2]
[324861188,1714378246572,-500.0,0.00012579,2]
[324861189,1714378246581,-500.0,0.00012579,2]
[324861190,1714378246590,-151.0,0.00012579,2]
[324861191,1714378246600,-151.0,0.00012579,2]
[324861192,1714378246610,-151.0,0.00012579,2]
[324861193,1714378246620,-151.0,0.00012579,2]
[324861194,1714378246629,-151.0,0.00012579,2]
[324861195,1714378246638,-151.0,0.00012579,2]
[324861196,1714378246648,-151.0,0.00012579,2]
[324861197,1714378246658,-151.0,0.00012579,2]
[324861198,1714378246667,-288.557381,0.00012579,2]
[324861199,1714378246676,-151.0,0.00012579,2]
[324861200,1714378246685,-151.0,0.00012579,2]
[324861201,1714378246695,-151.0,0.00012579,2]
[324861202,1714378246704,-151.0,0.00012579,2]
[324861203,1714378246713,-300.276212,0.00012579,2]
[324861204,1714378246722,-151.0,0.00012579,2]
[324861205,1714378246731,-311.036876,0.00012579,2]
[324861206,1714378246741,-899.0,0.0001258,2]
[324861207,1714378246750,-195621.8788607,0.0001258,2]
[324861208,1714378246776,-370495.30852597,0.0001258,2]
[324861209,1714378246787,-30316.51912373,0.0001258,2]
[324861210,1714378246805,-2929.92869245,0.0001258,2]
[324861211,1714378246844,-1036.24451051,0.0001258,2]
[324861212,1714378247058,-500.0,0.00012375,2]
[324861213,1714378247068,-1089.5,0.0001258,2]
[324861214,1714378247097,-465.03776816,0.0001258,2]
[324861215,1714378247114,-1129.10829927,0.0001258,2]
[324861216,1714378247134,-4410.5595098,0.0001258,2]
[324861217,1714378247146,-1272.83556801,0.0001258,2]
[324861218,1714378247419,-848.46,0.0001258,2]
[324861219,1714378247880,-2644.942405,0.00010682,2]
[324861220,1714378247890,-500.0,0.00012375,2]
[324861221,1714378247900,-500.0,0.00012375,2]
[324861222,1714378247909,-572.49,0.00012377,2]
[324861223,1714378247919,-311.036876,0.00012579,2]
[324861224,1714378247928,-173281.42933925,0.0001258,2]
[324861225,1714378247940,-4433.464,0.0001258,2]
[324861226,1714378248682,-155.0,0.00012374,2]
[324861227,1714378248691,-469.56983749,0.00012375,2]
[324861228,1714378248703,-30.43016251,0.00012375,2]
[324861229,1714378248712,-500.0,0.00012375,2]
[324861230,1714378248721,-17.41160176,0.00012375,2]
[324861231,1714378248732,-482.58839824,0.00012375,2]
[324861232,1714378248741,-345.87842025,0.00012375,2]
[324861233,1714378248753,-154.12157975,0.00012375,2]
[324861234,1714378248762,-1500.67842063,0.0001258,2]
[324861235,1714378248774,-3150.39333094,0.0001258,2]
[324861236,1714378248798,-48338.14978477,0.0001258,2]
[324861237,1714378248817,-500.0,0.00012375,2]
[324861238,1714378248826,-229.84447546,0.0001258,2]
[324861239,1714378248843,-480.16982061,0.0001258,2]
[324861240,1714378248855,-6573.59869803,0.0001258,2]
[324861241,1714378291428,150.0,0.00021563,120]
[324861242,1714378351023,150.0,0.0002341,120]
[324861243,1714378471414,150.0,0.00024859,120]
[324861244,1714378624022,470.07,9.481e-05,2]
[324861245,1714378650869,150.0,0.0002179,120]
[324861246,1714378698315,512.62531482,9.481e-05,2]
[324861247,1714378698336,45.54745791,9.481e-05,2]
[324861248,1714378701268,-155.0,0.00010479,2]
[324861249,1714378701291,-155.0,0.0001048,2]
[324861250,1714378711258,150.0,0.00021693,120]
[324861251,1714378718018,179.76311793,0.0001048,2]
[324861252,1714378721077,408.77030768,0.0001048,2]
[324861253,1714378731926,18347.77333257,0.0001048,2]
[324861254,1714378732008,179.76311793,0.0001048,2]
[324861255,1714378735084,408.77030768,0.0001048,2]
[324861256,1714378742690,546.20949815,8.384e-05,2]
[324861257,1714378750019,179.76311793,0.0001048,2]
[324861258,1714378751098,412.45935875,0.0001048,2]
[324861259,1714378760580,416.22357568,8.384e-05,2]
[324861260,1714378770008,179.76311793,0.0001048,2]
[324861261,1714378770855,150.0,0.00021136,120]
[324861262,1714378786020,179.76311793,0.0001048,2]
[324861263,1714378806030,161.32445924,0.0001048,2]
[324861264,1714378830929,150.0,0.00022804,120]
[324861265,1714378890868,150.0,0.00022839,120]
[324861266,1714379010864,150.0,0.00022693,120]
[324861267,1714379190820,150.0,0.00022185,120]
[324861272,1714379240184,426.54182089,0.00010415,2]
[324861276,1714379288270,446.56,9.279e-05,2]
[324861277,1714379310865,150.0,0.0002363,120]
[324861284,1714379370905,150.0,0.0002367,120]
[324861306,1714379432116,-721.924732,0.00010721,2]
[324861308,1714379432126,-89.28523772,0.00010829,2]
[324861311,1714379432186,-65.71476228,0.00010829,2]
[324861312,1714379432196,-3500.0,0.0001083,2]
[324861313,1714379432205,-336.4578599,0.00010885,2]
[324861314,1714379432225,-380.04295626,0.00010885,2]
[324861315,1714379432234,-1245.53009067,0.00011,3]
[324861316,1714379432247,-1204.46990933,0.00011,3]
[324861317,1714379432256,-3046.32626526,0.00011108,2]
[324861438,1714379438144,-329.5347003,0.00011108,2]
[324861443,1714379438333,-3034.34903444,0.00011108,2]
[324861444,1714379438342,-592.65,0.00011203,2]
[324861445,1714379438352,-472.0745,0.00011226,2]
[324861446,1714379438361,-1211.95,0.00011281,2]
[324861447,1714379438371,-163.74,0.00011296,2]
[324861448,1714379438380,-177.45,0.00011326,2]
[324861449,1714379438389,-156.21,0.00011341,2]
[324861450,1714379438399,-336.46,0.0001135,2]
[324861451,1714379438408,-446.56,0.00011543,2]
[324861452,1714379438418,-266.15,0.00011595,2]
[324861453,1714379438427,-700.0,0.0001178,2]
[324861454,1714379438439,-150.0,0.00011978,2]
[324861455,1714379438449,-387.68,0.00011978,2]
[324861456,1714379438458,-150.0,0.00011978,2]
[324861458,1714379438467,-572.33,0.00011978,2]
[324861460,1714379438477,-4300.0,0.000121,4]
[324861462,1714379438486,-8600.0,0.000122,4]
[324861464,1714379438494,-150.0,0.0001227,3]
[324861466,1714379438504,-2212.17975981,0.00012275,2]
[324861468,1714379438513,-1620.3606,0.00012275,2]
[324861470,1714379438522,-7500.0,0.00012275,2]
[324861472,1714379438531,-52766.6667,0.00012276,2]
[324861474,1714379438540,-12900.0,0.000123,4]
[324861476,1714379438550,-525.0,0.00012301,2]
[324861478,1714379438558,-3734.19254607,0.00012362,2]
[324861480,1714379438568,-156.36,0.00012364,2]
[324861482,1714379438578,-251.06996746,0.00012372,2]
[324861484,1714379438586,-1798.73745493,0.00012373,2]
[324861486,1714379438596,-204.77348564,0.00012373,2]
[324861488,1714379438605,-489.03115689,0.00012373,2]
[324861490,1714379438614,-5653.37842289,0.00012373,2]
[324861492,1714379438623,-206.88313584,0.00012373,2]
[324861494,1714379438632,-3805.47993517,0.00012373,2]
[324861496,1714379438642,-558.38212117,0.00012373,2]
[324861498,1714379438651,-202.77419609,0.00012373,2]
[324861500,1714379438660,-500.0,0.00012373,2]
[324861501,1714379438669,-500.0,0.00012373,2]
[324861502,1714379438678,-500.0,0.00012373,2]
[324861503,1714379438689,-500.0,0.00012373,2]
[324861504,1714379438698,-500.0,0.00012373,2]
[324861505,1714379438707,-503.18319624,0.00012373,2]
[324861506,1714379438716,-673.41,0.00012373,2]
[324861507,1714379438725,-500.0,0.00012373,2]
[324861508,1714379438733,-500.0,0.00012373,2]
[324861509,1714379438742,-1227.22,0.00012373,2]
[324861510,1714379438752,-1223.06,0.00012373,2]
[324861511,1714379438761,-500.0,0.00012373,2]
[324861512,1714379438771,-500.0,0.00012373,2]
[324861513,1714379438780,-500.0,0.00012373,2]
[324861514,1714379438789,-500.0,0.00012373,2]
[324861515,1714379438799,-1543.11,0.00012373,2]
[324861516,1714379438808,-500.0,0.00012373,2]
[324861517,1714379438816,-716.44,0.00012373,2]
[324861518,1714379438826,-562.95,0.00012373,2]
[324861519,1714379438835,-500.0,0.00012373,2]
[324861520,1714379438844,-500.0,0.00012373,2]
[324861521,1714379438853,-500.0,0.00012373,2]
[324861522,1714379438862,-832.35,0.00012373,2]
[324861523,1714379438871,-1354.23,0.00012373,2]
[324861524,1714379438882,-1008.64,0.00012373,2]
[324861525,1714379438892,-500.0,0.00012373,2]
[324861526,1714379438902,-500.0,0.00012373,2]
[324861527,1714379438911,-500.0,0.00012373,2]
[324861528,1714379438920,-6822.76,0.00012373,2]
[324861529,1714379438930,-500.0,0.00012373,2]
[324861530,1714379438939,-500.0,0.00012373,2]
[324861531,1714379438948,-500.0,0.00012373,2]
[324861532,1714379438958,-500.0,0.00012373,2]
[324861533,1714379438967,-500.0,0.00012373,2]
[324861534,1714379438976,-500.0,0.00012373,2]
[324861535,1714379438985,-500.0,0.00012373,2]
[324861536,1714379438994,-500.0,0.00012373,2]
[324861537,1714379439003,-500.0,0.00012373,2]
[324861538,1714379439012,-500.0,0.00012373,2]
[324861539,1714379439020,-500.0,0.00012373,2]
[324861540,1714379439030,-500.0,0.00012373,2]
[324861541,1714379439038,-500.0,0.00012373,2]
[324861542,1714379439047,-500.0,0.00012373,2]
[324861543,1714379439056,-1407.98,0.00012373,2]
[324861544,1714379439065,-500.0,0.00012373,2]
[324861545,1714379439074,-500.0,0.00012373,2]
[324861546,1714379439083,-500.0,0.00012373,2]
[324861547,1714379439092,-500.0,0.00012373,2]
[324861548,1714379439101,-503.52402664,0.00012373,2]
[324861549,1714379439110,-500.0,0.00012373,2]
[324861550,1714379439118,-5000.0,0.00012374,2]
[324861551,1714379439127,-317.01746459,0.00012374,2]
[324861552,1714379439137,-407.19761892,0.00012374,2]
[324861553,1714379439146,-500.0,0.00012374,2]
[324861554,1714379439155,-500.0,0.00012374,2]
[324861555,1714379439164,-500.0,0.00012374,2]
[324861556,1714379439173,-500.0,0.00012374,2]
[324861557,1714379439183,-500.0,0.00012374,2]
[324861558,1714379439193,-500.0,0.00012374,2]
[324861559,1714379439202,-500.0,0.00012374,2]
[324861560,1714379439211,-500.0,0.00012374,2]
[324861561,1714379439220,-500.0,0.00012374,2]
[324861562,1714379439228,-500.0,0.00012374,2]
[324861563,1714379439237,-500.0,0.00012374,2]
[324861564,1714379439247,-500.0,0.00012374,2]
[324861565,1714379439256,-500.0,0.00012374,2]
[324861566,1714379439265,-500.0,0.00012374,2]
[324861567,1714379439273,-500.0,0.00012374,2]
[324861568,1714379439282,-500.0,0.00012374,2]
[324861569,1714379439291,-505.51041798,0.00012374,2]
[324861570,1714379439300,-500.0,0.00012374,2]
[324861571,1714379439309,-500.0,0.00012374,2]
[324861572,1714379439319,-500.0,0.00012374,2]
[324861573,1714379439328,-500.0,0.00012374,2]
[324861574,1714379439337,-500.0,0.00012374,2]
[324861575,1714379439346,-500.0,0.00012374,2]
[324861576,1714379439356,-500.0,0.00012374,2]
[324861577,1714379439366,-500.0,0.00012374,2]
[324861578,1714379439375,-500.0,0.00012374,2]
[324861579,1714379439384,-500.0,0.00012374,2]
[324861580,1714379439394,-500.0,0.00012374,2]
[324861581,1714379439403,-500.0,0.00012374,2]
[324861582,1714379439412,-500.0,0.00012374,2]
[324861583,1714379439421,-500.0,0.00012374,2]
[324861584,1714379439430,-500.0,0.00012374,2]
[324861585,1714379439441,-500.0,0.00012374,2]
[324861586,1714379439451,-500.0,0.00012374,2]
[324861587,1714379439459,-500.0,0.00012374,2]
[324861588,1714379439468,-500.0,0.00012374,2]